[Event "Fredericia IM 2022"]
[Site "Fredericia"]
[Date "2022.05.28"]
[Round "6.2"]
[White "Bogdanov, Egor"]
[Black "Hilwerda, Jonas"]
[Result "0-1"]
[ECO "B31"]
[WhiteElo "2415"]
[BlackElo "2275"]
[Annotator "TA"]
[PlyCount "98"]
[EventDate "2022.05.25"]
[EventType "tourn"]
[EventCountry "DEN"]
[SourceTitle "playchess.com"]
[Source "ChessBase"]
[SourceQuality "1"]
[TimeControl "40/5400+30:1800+30"]

{[%evp 16,98,11,12,18,-27,-33,-40,-32,-87,-64,-55,25,-77,-47,-91,-87,-90,-17,-17,-20,-171,-186,-186,-182,-182,-182,-187,-183,-182,-182,-182,-182,-181,-93,-181,-185,-245,-163,-150,-144,-256,-108,-171,-127,-250,-245,-29983,-29984,-29984,-29980,-29980,-29981,-29981,-29982,-5397,-1548,-2985,-739,-675,-638,-2403,-1438,-1387,-1159,-29970,-29971,-29973,-29973,-29975,-29975,-29975,-29976,-29972,-29965,-29968,-29966,-29968,-29970,-29978,-29979,-29990,-29991,-29997,-29987]} 1. e4 {[%emt 0:00:02]} c5 {[%emt 0:00:12]} 2. Nf3 {[%emt 0:00:04]} Nc6 {[%emt 0:00:15]} 3. Bb5 {[%emt 0:00:04]} g6 {[%emt 0:00:22]} 4. O-O {[%emt 0:00:03]} Bg7 {[%emt 0:00:32]} 5. c3 {[%emt 0:00:03]} e5 {[%emt 0:00:54]} 6. d4 {[%emt 0:00:03]} cxd4 {[%emt 0:00:06]} 7. cxd4 {[%emt 0:00:06]} exd4 {[%emt 0:00:05]} 8. Bf4 {[%emt 0:00:24]} a6 {[%emt 0:00:31]} 9. Bc4 {[%emt 0:02:13][%mdl 1024] White has compensation.} d6 {[%emt 0:00:11] B31: Sicilian: 2...Nc6 3 Bb5 g6.} 10. Nbd2 {[%emt 0:01:39]} Nf6 {[%emt 0:12:41]} 11. Re1 {[%emt 0:11:27][%cal Of4d6]} O-O {[%emt 0:01:11] [#] Black is slightly better.} 12. e5 $146 {[%emt 0:18:02]} ({White should try} 12. Rc1 $15) ({Predecessor:} 12. Bb3 h6 13. h3 Re8 14. Rc1 d5 15. exd5 Rxe1+ 16. Qxe1 Nxd5 17. Bxd5 Qxd5 18. Qe8+ {0-1 (29) Haria,R (2463)-Santos Ruiz,M (2560) New Delhi 2019}) 12... dxe5 $17 {[%emt 0:11:48]} 13. Nxe5 {[%emt 0:00:04]} Na5 {[%emt 0:02:15]} (13... Nd5 $15 14. Bxd5 Qxd5) 14. Be2 {[%emt 0:04:53]} (14. Bxf7+ $11 Rxf7 15. Nxf7 Kxf7 16. Rc1) 14... Bf5 {[%emt 0:20:44]} 15. Nb3 {[%emt 0:09:44]} Nxb3 {[%emt 0:12:17]} 16. Qxb3 {[%emt 0:00:08]} Be6 {[%emt 0:00:12]} ({Black should play} 16... Nd7 $17 17. Nxd7 Qxd7) 17. Qxb7 $11 {[%emt 0:01:58]} Nd5 {[%emt 0:13:30]} 18. Nc6 $2 {[%emt 0:02:33]} (18. Bg3 $11 {and White is okay.}) 18... Qd7 $19 {[%emt 0:07:35]} 19. Qxd7 {[%emt 0:00:48]} Bxd7 {[%emt 0:00:02]} 20. Ne5 {[%emt 0:00:13]} Nxf4 {[%emt 0:02:17]} 21. Nxd7 {[%emt 0:00:02]} Rfd8 {[%emt 0:02:24]} 22. Bf3 {[%emt 0:02:03]} Rac8 {[%emt 0:05:10]} 23. Ne5 {[%emt 0:00:48]} Bxe5 {[%emt 0:01:39]} 24. Rxe5 {[%emt 0:00:01]} Rc2 {[%emt 0:00:38]} ({Better is} 24... d3 $1 $19 {[%cal Rd3d2] And now ...d2 would win.} 25. Rd1 Rc2) 25. Rd1 {[%emt 0:32:41]} (25. g3 $17 {is a better defense.} Nh3+ 26. Kg2 Rxf2+ 27. Kxh3 Rxf3 28. Kg2) 25... d3 $1 {[%emt 0:00:02] ...d2 is the strong threat.} ({And not} 25... Rxb2 26. Re4 Ne6 27. Re2 $17) 26. Kf1 {[%emt 0:07:20]} (26. Re4 {was called for.} Ne6 27. b4) 26... Rxb2 {[%emt 0:00:22]} 27. Re4 {[%emt 0:02:42]} g5 {[%emt 0:00:02][%cal Bg6g5,Bg5g4][%mdl 32] 0x0.001b5ab6d675dp-1022s more active pieces.} 28. h4 {[%emt 0:01:16] [#]} (28. Re5 $17) 28... h6 {[%emt 0:00:10]} (28... Rxa2 29. hxg5 Ne6 30. Re5 $17) (28... Rc2 $1 $19 {has better winning chances. Strongly threatening ...d2.} 29. Re3 d2 30. hxg5 Nd3) 29. Ra4 {[%emt 0:01:18]} (29. hxg5 $17 hxg5 30. Re5) 29... Rc8 {[%emt 0:00:14]} 30. Rxa6 {[%emt 0:01:42]} (30. Kg1 $17 {was worth a try.}) 30... Rcc2 {[%emt 0:00:09]} ({Worse is} 30... gxh4 31. Rxh6 (31. Ra4 Ng6 $17) 31... h3 32. Rh4 hxg2+ 33. Bxg2) 31. Rxh6 $2 {[%emt 0:00:17]} (31. hxg5 $19 Rxf2+ 32. Kg1) 31... g4 {[%emt 0:01:42]} 32. Be4 {[%emt 0:00:43]} f5 {[%emt 0:00:01]} 33. Bc6 {[%emt 0:00:46]} Rxf2+ {[%emt 0:02:23]} 34. Kg1 {[%emt 0:00:00]} g3 {[%emt 0:01:11]} 35. Kh1 {[%emt 0:00:58]} Ne2 {[%emt 0:01:39]} (35... Kg7 $142 36. Rd6 Rxg2 37. Rd7+ Kf6 38. Rd6+ Ke5 39. Bxg2 Rxg2 40. Rg6 Rh2+ 41. Kg1 Ne2+ 42. Kf1 Rh1+ 43. Kg2 Rxd1 44. Kf3 Nd4+ 45. Kxg3 d2 46. Kf2 Rc1 47. Rg7 d1=Q 48. Re7+ Kf6 49. Rf7+ Kxf7 50. Kg3 Qg4+ 51. Kh2 Nf3#) 36. Rd6 {[%emt 0:00:45]} Nc3 {[%emt 0:00:20]} (36... Rf4 $142 37. Bd5+ Kf8 38. Rf6+ Kg7 39. Rf7+ Kg6 40. h5+ Kh6 41. Rf6+ Kg5 42. Rg6+ Kxh5 43. Rxg3 Nxg3+ 44. Kh2 Nf1+ 45. Kg1 {[#]} d2 $1) 37. R6xd3 {[%emt 0:00:30]} Nxd1 {[%emt 0:01:23]} 38. Rxd1 {[%mdl 4096] Endgame KRR-KRB} Rb4 {[%emt 0:00:10] ( -> ...Kg7)} 39. Kg1 {[%emt 0:01:04]} Kg7 {[%emt 0:01:16]} 40. h5 {[%emt 0:00:30]} Rxa2 {[%emt 0:00:55] Black mates.} 41. Rf1 {[%emt 0:03:41]} f4 {[%emt 0:04:14]} 42. Rd1 {[%emt 0:01:48]} Rab2 {[%emt 0:09:34]} 43. Kf1 {[%emt 0:00:53]} Rb1 {[%emt 0:00:47]} 44. Rxb1 {[%emt 0:00:37]} Rxb1+ {[%emt 0:00:04] KR-KB} 45. Ke2 {[%emt 0:00:01]} Rb3 {[%emt 0:01:32]} 46. Bd5 {[%emt 0:00:06]} Re3+ {[%emt 0:00:49]} 47. Kf1 {[%emt 0:00:20]} Kh6 {[%emt 0:00:31]} 48. Bf7 {[%emt 0:00:36]} f3 49. Bc4 {[%emt 0:00:34]} Rc3 {[%emt 0:01:17] Weighted Error Value: White=0.74/Black=0.47} 0-1

[Event "Fredericia IM 2022"]
[Site "Fredericia"]
[Date "2022.05.28"]
[Round "6.3"]
[White "Easwaralingam, Adesh"]
[Black "Fries-Nielsen, Jens Ove"]
[Result "1/2-1/2"]
[ECO "B06"]
[WhiteElo "2116"]
[BlackElo "2370"]
[Annotator "TA"]
[PlyCount "20"]
[EventDate "2022.05.25"]
[EventType "tourn"]
[EventCountry "DEN"]
[SourceTitle "playchess.com"]
[Source "ChessBase"]
[SourceQuality "1"]
[TimeControl "40/5400+30:1800+30"]

{[%evp 9,20,48,32,32,27,35,43,0,37,0,29,0,46]} 1. e4 {[%emt 0:00:12]} g6 {[%emt 0:00:18]} 2. d4 {[%emt 0:00:18]} Bg7 {[%emt 0:00:21]} 3. Nc3 {[%emt 0:00:40]} Nc6 {[%emt 0:00:26]} 4. Be3 {[%emt 0:00:16]} d5 {[%emt 0:00:42]} 5. exd5 {[%emt 0:00:31]} Nb4 {[%emt 0:00:30]} 6. Bb5+ {[%emt 0:00:13] B06: Modern Defence.} Bd7 {[%emt 0:00:08]} 7. Bc4 {[%emt 0:00:06] Threatens to win with a3.} Bf5 $1 {[%emt 0:00:08] [#]} 8. Bb5+ $146 {[%emt 0:00:05]} ({Predecessor:} 8. Bb3 Nf6 9. Nge2 Nbxd5 10. Nxd5 Nxd5 11. Ng3 Be6 12. c4 Nxe3 13. fxe3 c5 14. Ba4+ Bd7 15. O-O O-O 16. dxc5 Bxa4 17. Qxa4 {1-0 (54) Hector,J (2539)-Fries Nielsen,J (2365) Malmo 2012}) 8... Bd7 {[%emt 0:00:07]} 9. Bc4 {[%emt 0:00:05] aiming for a3.} Bf5 $1 {[%emt 0:00:08]} 10. Bb5+ {[%emt 0:00:08]} Bd7 {[%emt 0:00:07] White did not feel at home in the position after the opening.  Weighted Error Value: White=0.22 (precise) /Black=0.00 (flawless)} 1/2-1/2

[Event "Fredericia IM 2022"]
[Site "Fredericia"]
[Date "2022.05.28"]
[Round "6.4"]
[White "Thorsbro, Peter"]
[Black "Egilstoft, Rogvi"]
[Result "0-1"]
[ECO "A41"]
[WhiteElo "2192"]
[BlackElo "2334"]
[Annotator "TA"]
[PlyCount "60"]
[EventDate "2022.05.25"]
[EventType "tourn"]
[EventCountry "DEN"]
[SourceTitle "playchess.com"]
[Source "ChessBase"]
[SourceQuality "1"]
[TimeControl "40/5400+30:1800+30"]

{[%evp 9,60,54,64,50,54,37,50,41,44,0,11,7,15,-5,0,-11,-8,-19,0,-47,-30,-65,-82,-104,-102,-117,-103,-114,-50,-64,-52,-25,-32,-50,-50,-45,-25,-229,-211,-206,-118,-418,-418,-29982,-29983,-7339,-1866,-1510,-1197,-29987,-29988,-29986,-29987]} 1. Nf3 {[%emt 0:03:30]} d6 {[%emt 0:00:26]} 2. d4 {[%emt 0:00:08]} Bg4 {[%emt 0:00:17]} 3. e4 {[%emt 0:00:35]} Nd7 {[%emt 0:01:49]} 4. Be2 {[%emt 0:01:41]} c6 {[%emt 0:03:53]} 5. c4 {[%emt 0:01:13]} e5 {[%emt 0:02:09]} 6. Be3 {[%emt 0:04:33] A41: 1 d4 d6: Tartakower System and Modern Defence.} Be7 {[%emt 0:06:14]} 7. O-O {[%emt 0:01:46]} Bxf3 {[%emt 0:01:41]} 8. Bxf3 {[%emt 0:00:04] White is slightly better.} Bg5 {[%emt 0:00:12]} 9. Nc3 {[%emt 0:09:19]} Bxe3 {[%emt 0:02:09]} 10. fxe3 {[%emt 0:00:03]} Ngf6 {[%emt 0:00:54] [#]} 11. b4 $146 {[%emt 0:01:29]} ({Predecessor:} 11. Rf2 O-O 12. Bg4 Nxg4 13. Qxg4 Qe7 14. Raf1 a6 15. d5 c5 16. a4 Kh8 17. Rf3 {1-0 (61) Simutowe,A (2485)-Andonov,B (2316) Prague 2009}) 11... O-O {[%emt 0:03:40]} 12. c5 {[%emt 0:12:11]} Qe7 {[%emt 0:01:47][%cal Rd6c5]} 13. Qc2 {[%emt 0:06:18]} b6 {[%emt 0:09:47]} 14. d5 {[%emt 0:02:47]} (14. b5 $11 exd4 15. exd4 bxc5 16. bxc6 cxd4 17. Nb5 (17. cxd7 dxc3 18. e5 Qxe5 $11) (17. Nd5 Nxd5 18. exd5 Nc5 $11)) 14... bxc5 $15 {[%emt 0:07:31]} 15. dxc6 {[%emt 0:00:29]} cxb4 {[%emt 0:01:35]} 16. Nd5 {[%emt 0:03:16]} Nxd5 {[%emt 0:00:12]} 17. exd5 {[%emt 0:00:08]} Nc5 {[%emt 0:00:09]} 18. Qd2 {[%emt 0:02:07]} e4 {[%emt 0:10:20]} (18... a5 $17) 19. Be2 {[%emt 0:00:15]} Rfb8 {[%emt 0:09:28]} 20. Rac1 {[%emt 0:01:01][%cal Oc1c5] Rxc5! is the strong threat.} Qc7 {[%emt 0:00:17]} 21. Rc4 {[%emt 0:16:40]} a5 {[%emt 0:04:04]} 22. Qd4 {[%emt 0:04:09]} b3 {[%emt 0:04:14]} 23. Rxc5 $2 {[%emt 0:16:18]} (23. axb3 $11 {and White stays safe.} Nxb3 24. Qc3 (24. Qxe4 $2 Nd2 $19)) 23... dxc5 $19 {[%emt 0:02:32]} 24. Qxc5 {[%emt 0:00:03]} b2 {[%emt 0:05:16]} (24... bxa2 $19 {Strongly threatening ...Rb1.} 25. Bc4 Rb1 26. Bxa2 Rxf1+ 27. Kxf1 Qe5) 25. d6 $2 {[%emt 0:03:07][%mdl 8192] [#]} (25. Rb1 $17 {was forced.} Qb6 26. Qxb6 Rxb6 27. Bg4) 25... Qb6 $1 {[%emt 0:02:04]} 26. Qd5 {[%emt 0:09:45]} (26. Qxb6 $19 Rxb6 27. Rb1 Rxc6 28. Rxb2) 26... Qxe3+ {[%emt 0:02:53]} 27. Kh1 {[%emt 0:00:02]} b1=Q {[%emt 0:00:14]} (27... Qxe2 $142 28. Qxf7+ Kh8) 28. c7 {[%emt 0:00:46] [#]} Qxe2 $1 {[%emt 0:04:42][%cal Re2f1]} 29. cxb8=Q+ (29. c8=Q+ Rxc8) 29... Rxb8 {[%emt 0:01:15][%cal Re2f1]} 30. Qxf7+ {[%emt 0:01:08]} Kh8 {[%emt 0:00:05] Weighted Error Value: White=1.13/Black=0.23 (precise)} 0-1

[Event "Fredericia IM 2022"]
[Site "Fredericia"]
[Date "2022.05.28"]
[Round "6.5"]
[White "Boe, Mads"]
[Black "Vinter-Schou, Uffe"]
[Result "1/2-1/2"]
[ECO "B18"]
[WhiteElo "2293"]
[BlackElo "2321"]
[Annotator "TA"]
[PlyCount "38"]
[EventDate "2022.05.25"]
[EventType "tourn"]
[EventCountry "DEN"]
[SourceTitle "playchess.com"]
[Source "ChessBase"]
[SourceQuality "1"]
[TimeControl "40/5400+30:1800+30"]

{[%evp 17,38,28,35,29,47,53,44,40,41,41,45,41,40,39,41,41,39,0,43,0,45,0,47]} 1. e4 c6 2. d4 d5 3. Nc3 {[%cal Bb1c3,Bc3e4,Be4g3][%mdl 32]} dxe4 4. Nxe4 Bf5 5. Ng3 Bg6 6. Nh3 e6 7. Nf4 Bd6 8. h4 Qc7 9. Nxg6 hxg6 10. Ne4 {B18: Classical Caro-Kann: 4...Bf5 sidelines.} Bf4 11. Bxf4 Qxf4 12. Ng5 {White is slightly better.} Nf6 13. g3 Qc7 14. Qd2 Nbd7 15. O-O-O Nh7 16. Ne4 Nhf6 17. Ng5 Nh7 18. Ne4 {[#]} Nhf6 $146 ({Predecessor:} 18... O-O-O 19. Bg2 Kb8 20. Kb1 Nhf6 21. Ng5 Nb6 22. Qe2 Rd7 23. c3 Rhd8 24. Bf3 Nbd5 25. Ka1 Ka8 26. Rhe1 {0-1 (66) Biolek,R (2469)-Sengupta,D (2565) Pardubice 2018}) 19. Ng5 Nh7 {Weighted Error Value: White=0.12 (very precise) /Black=0.03 (flawless)} 1/2-1/2

[Event "Fredericia IM 2022"]
[Site "Fredericia"]
[Date "2022.05.28"]
[Round "7.1"]
[White "Storme, Isak"]
[Black "Thorsbro, Peter"]
[Result "1-0"]
[ECO "C77"]
[WhiteElo "2388"]
[BlackElo "2192"]
[Annotator "TA"]
[PlyCount "89"]
[EventDate "2022.05.25"]
[EventType "tourn"]
[EventCountry "DEN"]
[SourceTitle "playchess.com"]
[Source "ChessBase"]
[SourceQuality "1"]
[TimeControl "40/5400+30:1800+30"]

{[%evp 18,89,24,20,36,12,44,36,69,68,62,65,64,67,97,88,111,121,114,118,116,118,141,141,141,141,141,142,141,141,141,141,143,143,314,316,302,300,288,293,272,275,511,503,670,641,875,898,1972,1868,1885,1497,1230,1215,3966,2177,2752,2526,29971,29974,29972,29973,29972,29973,29971,29972,29982,29983,29983,29984,29982,29983,29980,29981]} 1. e4 {[%emt 0:00:06]} e5 {[%emt 0:02:33]} 2. Nf3 {[%emt 0:00:11]} Nc6 {[%emt 0:00:03]} 3. Bb5 {[%emt 0:00:10][%cal Bf1b5,Bb5a4,Ba4b3][%mdl 32]} a6 {[%emt 0:00:04]} 4. Ba4 {[%emt 0:00:08]} Nf6 {[%emt 0:00:09]} 5. d3 {[%emt 0:00:22]} b5 {[%emt 0:00:10]} 6. Bb3 {[%emt 0:00:10]} Be7 {[%emt 0:00:05]} 7. a4 {[%emt 0:00:15]} Rb8 {[%emt 0:01:56]} 8. axb5 {[%emt 0:00:09]} axb5 {[%emt 0:00:06]} 9. O-O {[%emt 0:00:29]} O-O {[%emt 0:00:09]} 10. Re1 {[%emt 0:00:22]} h6 {[%emt 0:01:18] [#] C88: Closed Ruy Lopez: Anti-Marshall Systems.} 11. Nc3 $146 {[%emt 0:01:01]} ({Predecessor:} 11. Nbd2 Re8 12. Nf1 Bf8 13. c3 d5 14. exd5 Nxd5 15. d4 exd4 16. Rxe8 Qxe8 17. Bxd5 dxc3 18. bxc3 {1-0 (39) Argote Heredia,V (2008)-Fraile Vela,M (1677) Cali 2018}) 11... Re8 {[%emt 0:01:17]} 12. Nd5 {[%emt 0:04:15]} Nxd5 {[%emt 0:03:52] White is slightly better.} 13. exd5 {[%emt 0:17:36]} Nd4 {[%emt 0:00:08]} 14. Nxd4 {[%emt 0:01:26]} ({Not} 14. Nxe5 Bd6 15. Ng4 Rxe1+ 16. Qxe1 f5 $17) ({Of course not} 14. Rxe5 Nxb3 15. cxb3 Bb7 $11) 14... exd4 {[%emt 0:00:09]} 15. Qg4 {[%emt 0:22:25][%csl LRd4,LRh6]} Rb6 {[%emt 0:03:04]} 16. Qxd4 {[%emt 0:08:25] White is more active.} Bc5 {[%emt 0:04:48][%cal Re8e1] [#]} 17. Rxe8+ {[%emt 0:00:34]} Qxe8 {[%emt 0:00:06][%cal Re8e1]} 18. Qe4 {[%emt 0:00:10] Prevents Qe1+.} Qxe4 {[%emt 0:04:15]} 19. dxe4 {[%emt 0:01:49] Strongly threatening Ra8.} Rf6 {[%emt 0:03:40]} 20. Be3 {[%emt 0:00:12]} Bxe3 {[%emt 0:00:04]} 21. fxe3 {[%emt 0:00:05][%cal Bf2e3,Be3e4,Be4f5][%mdl 32]} Ra6 {[%emt 0:00:07] Inhibits Ra8.} 22. Rxa6 {[%emt 0:01:00]} Bxa6 $16 {[%emt 0:00:02][%mdl 4096] Endgame KB-KB} 23. e5 {[%emt 0:02:54]} d6 {[%emt 0:00:07]} 24. exd6 {[%emt 0:00:11]} cxd6 {[%emt 0:00:03]} 25. e4 {[%emt 0:00:36]} f5 $2 {[%emt 0:17:28]} (25... Kf8 $16 {might work better.} 26. Kf2 Ke7) 26. exf5 $18 {[%emt 0:10:44]} Kf7 {[%emt 0:00:06]} 27. Kf2 {[%emt 0:00:21]} Kf6 {[%emt 0:00:05] [#]} 28. Ke3 $1 {[%emt 0:07:44]} Ke5 {[%emt 0:00:03]} 29. g4 {[%emt 0:03:02]} Bb7 $2 {[%emt 0:02:49]} (29... b4 {was called for.} 30. c4 bxc3 31. bxc3 Bf1) 30. c3 {[%emt 0:00:47]} Bc8 {[%emt 0:02:59]} 31. Ba2 {[%emt 0:00:30]} h5 {[%emt 0:04:36]} 32. h3 {[%emt 0:00:11][%cal Bh2h3,Bh3g4][%mdl 32]} hxg4 {[%emt 0:00:56]} 33. hxg4 {[%emt 0:00:06]} Bb7 {[%emt 0:02:04]} 34. b4 {[%emt 0:00:44] c4 is the strong threat.} Ba6 {[%emt 0:00:44]} 35. Bb3 {[%emt 0:00:10]} Bc8 {[%emt 0:04:42]} 36. c4 {[%emt 0:00:48][%cal Bc3c4,Bc4c5,Bc5c6][%mdl 32]} Ba6 {[%emt 0:00:11]} 37. c5 {[%emt 0:00:19]} Bb7 {[%emt 0:00:51]} 38. c6 {[%emt 0:00:57] White mates.} Bc8 {[%emt 0:00:04]} 39. Ba2 {[%emt 0:00:23]} Ba6 {[%emt 0:00:09]} 40. Kf3 {[%emt 0:00:31]} Bc8 {[%emt 0:00:28]} 41. Kg3 {[%emt 0:30:19]} Ke4 {[%emt 0:39:07]} 42. Kh4 {[%emt 0:00:29]} Kf4 {[%emt 0:00:23]} 43. Kh5 {[%emt 0:00:10]} Ba6 {[%emt 0:01:24]} 44. Bb1 {[%emt 0:00:31]} Bc8 {[%emt 0:00:11]} 45. Kg6 {[%emt 0:00:10] White took control after the opening.  Weighted Error Value: White=0.01 (flawless) /Black=0.52} 1-0

[Event "Fredericia IM 2022"]
[Site "Fredericia"]
[Date "2022.05.28"]
[Round "7.2"]
[White "Ramsdal, Jens Albert"]
[Black "Vinter-Schou, Uffe"]
[Result "1-0"]
[ECO "E32"]
[WhiteElo "2267"]
[BlackElo "2321"]
[Annotator "TA"]
[PlyCount "83"]
[EventDate "2022.05.25"]
[EventType "tourn"]
[EventCountry "DEN"]
[SourceTitle "playchess.com"]
[Source "ChessBase"]
[SourceQuality "1"]
[TimeControl "40/5400+30:1800+30"]

{[%evp 11,83,10,15,19,16,12,13,10,34,28,28,-30,-30,-24,0,0,12,12,64,19,75,31,81,66,58,73,133,147,129,120,235,79,254,202,297,302,277,287,295,266,302,310,270,316,359,367,355,363,343,368,426,419,394,424,525,497,690,410,454,450,452,475,468,470,464,446,552,540,1152,1179,29991,29992,29992,1329]} 1. d4 {[%emt 0:00:13]} Nf6 {[%emt 0:00:10]} 2. c4 {[%emt 0:00:25]} e6 {[%emt 0:00:38]} 3. Nc3 {[%emt 0:00:05]} Bb4 {[%emt 0:00:38]} 4. Qc2 {[%emt 0:00:06]} d6 {[%emt 0:02:20]} 5. Bd2 {[%emt 0:00:27]} Nbd7 {[%emt 0:03:01]} 6. Nf3 {[%emt 0:02:43]} O-O {[%emt 0:01:30]} 7. a3 {[%emt 0:02:15] E32: Nimzo-Indian: Classical (4 Qc2): 4...0-0.} Bxc3 {[%emt 0:00:08]} 8. Bxc3 {[%emt 0:00:04]} c5 {[%emt 0:08:54]} 9. Rd1 {[%emt 0:06:34] The position is equal.} Qe7 {[%emt 0:11:43]} 10. dxc5 {[%emt 0:09:58]} Nxc5 {[%emt 0:00:12] [#]} 11. Ng5 $146 {[%emt 0:13:21]} (11. Bxf6 $142 Qxf6 12. b4 (12. Rxd6 Bd7 $11)) ({Predecessor:} 11. Bxf6 Qxf6 12. b4 Nd7 13. e3 Rd8 14. Be2 Qe7 15. O-O Nf6 16. c5 dxc5 17. Qxc5 Qxc5 18. Rxd8+ {½-½ (26) Kopasov,E (2200)-Buczinski,H (2120) LSS email 2015}) 11... e5 $11 {[%emt 0:03:24]} 12. b4 {[%emt 0:00:34]} Ne6 {[%emt 0:04:05]} 13. Ne4 {[%emt 0:01:27]} Rd8 {[%emt 0:11:43][%cal Ob7b5]} 14. e3 $36 {[%emt 0:04:15][%cal Be2e3,Be3f4,Bf4f5,Bf5f6][%mdl 2080] White has some pressure.} Ne8 {[%emt 0:12:14]} (14... Nxe4 $11 15. Qxe4 a5) 15. Ng3 {[%emt 0:03:12]} b6 {[%emt 0:04:40]} (15... g6 $11) 16. Be2 {[%emt 0:01:57][%cal Of2f4]} (16. Bd3 $5 {[%cal Rd3h7]}) 16... Bb7 {[%emt 0:00:31]} (16... Ba6 $14) 17. O-O $16 {[%emt 0:00:12]} Rac8 {[%emt 0:00:20]} 18. f4 {[%emt 0:03:35]} exf4 {[%emt 0:08:46]} (18... g6 $142) 19. exf4 {[%emt 0:00:13] Threatens to win with Bd3.} d5 {[%emt 0:01:01]} 20. Bd3 $1 {[%emt 0:11:07] White is more active. A strong pair of Bishops.} d4 {[%emt 0:06:33]} (20... dxc4 $16 21. Bxh7+ Kf8) 21. Bd2 $2 {[%emt 0:01:06]} ({Don't take} 21. Bxh7+ $6 Kf8 22. Bb2 Qh4 $16) (21. Nf5 $1 $18 {[%cal Rf5e7]} Qf8 22. Nxd4 $1 {[%mdl 512]}) 21... h6 $2 {[%emt 0:03:15] This costs Black the game.} (21... Nf6 $16) 22. Rde1 {[%emt 0:03:55]} Qf8 {[%emt 0:02:26]} (22... Qd7 $142 23. f5 Nf8) 23. f5 $18 {[%emt 0:10:40]} Ng5 {[%emt 0:00:08]} 24. f6 $1 {[%emt 0:02:43]} Nxf6 {[%emt 0:00:12] [#]} 25. Rxf6 $1 {[%emt 0:00:54][%mdl 512]} gxf6 {[%emt 0:00:07]} 26. h4 {[%emt 0:00:08]} Re8 {[%emt 0:04:31] White must now prevent ...Qd6.} 27. Rf1 {[%emt 0:00:10]} Qd6 {[%emt 0:03:09]} 28. Bf4 {[%emt 0:00:07]} Qc6 {[%emt 0:02:26][%cal Og5e4]} 29. hxg5 {[%emt 0:00:16]} fxg5 {[%emt 0:02:40] [#]} 30. Bc1 {[%emt 0:00:08]} Re5 {[%emt 0:00:58]} 31. Qf2 {[%emt 0:02:37]} Rc7 {[%emt 0:00:22]} 32. Nf5 {[%emt 0:00:47] Inhibits Rce7.} Rd7 {[%emt 0:00:48]} 33. Qg3 {[%emt 0:01:25]} Re6 {[%emt 0:02:26]} (33... Re8 $2 {[#]} 34. Bxg5 $1 {[%mdl 512]} Qxg2+ 35. Qxg2) 34. Bb2 {[%emt 0:02:33]} Rf6 {[%emt 0:00:31]} 35. Qb8+ {[%emt 0:01:48]} Bc8 {[%emt 0:00:37]} 36. Qe5 {[%emt 0:06:31] Threatening mate with Qe8+.} Qe6 {[%emt 0:00:38] Prevents Qe8+.} 37. Qg3 {[%emt 0:00:05] Hoping for Re1.} Qe8 {[%emt 0:00:34]} 38. Re1 {[%emt 0:02:42]} Qd8 {[%emt 0:00:22]} 39. Qe5 {[%emt 0:00:39] Intending Qe8+ and mate.} Bb7 {[%emt 0:00:25]} 40. Qe8+ {[%emt 0:03:08]} Qxe8 {[%emt 0:00:32]} 41. Rxe8+ {[%emt 0:30:05]} Kh7 {[%emt 0:30:04]} 42. Ne7+ {Weighted Error Value: White=0.18 (very precise) /Black=0.56} (42. Nxd4+ $142 Kg7 43. Nf5+ Kh7 44. Ne7+ Rxd3 45. Bxf6 Rd1+ 46. Kh2 Rh1+ 47. Kxh1 Bxg2+ 48. Kxg2 h5 49. Rh8#) 1-0